Cogmind - Beta 13 @@@ ROGUE MODE // 2024.04.07 @ 23:12:59 Player: graour Result: Destroyed by FN-RPZ(R) with Subdweller Beam Cannon Performance ------------- Evolutions (0) 0 Regions Visited (3) 600 Robots Destroyed (16) 80 Value Destroyed (381) 381 Prototype IDs (0) 0 Alien Tech Used (0) 0 Bonus (54) 54 TOTAL SCORE: 1115 Bonus ------- Follower Combat Kills 78 Friendly Fire -24 Cogmind --------- Core Integrity 0/250 Matter 277/300 Energy 125/125 System Corruption 0% Temperature Cool (9) Movement Hovering (225) Ox2 Location -10/Subcaves Parts ------- > --- POWER (1) -------- Light Ion Engine > --- PROPULSION (2) --- Compact Wheel Combat Airjet > --- UTILITY (2) ------ Large Storage Unit Improved Light Armor Plating > --- WEAPON (2) ------- Small Laser Subdweller Machine Gun > --- INVENTORY (15) --- Ion Engine Light Ion Engine Light Treads Light Treads Light Treads Compact Wheel Heat Sink Transport Network Coupler Weapon Shielding Particle Gun Subdweller Beam Cannon Subdweller Machine Gun Rocket Launcher Mini Grenade Launcher Peak State ------------ > --- POWER ------------ Light Nuclear Core > --- PROPULSION ------- Compact Wheel Compact Wheel > --- UTILITY ---------- Improved Heat Sink Large Storage Unit > --- WEAPON ----------- Light Assault Rifle Plasma Flamer > --- INVENTORY -------- Ion Engine Light Ion Engine Light Treads Light Treads Light Treads Heat Sink Small Storage Unit Medium Storage Unit Transport Network Coupler Weapon Shielding Weapon Shielding Small Laser Beam Cannon [Rating: 16] Favorites ----------- Power Light Ion Engine Engine Light Ion Engine Power Core Light Nuclear Core Propulsion Compact Wheel Wheel Compact Wheel Hover Unit Combat Airjet Utility Large Storage Unit Device Improved Heat Sink Storage Large Storage Unit Protection Improved Light Armor Plating Weapon Light Assault Rifle Energy Gun Small Laser Energy Cannon Beam Cannon Ballistic Gun Light Assault Rifle Launcher Mini Grenade Launcher Special Weapon Mining Laser Build | -11 -10 -10 -10 ------- Run | Yrd Mat Min Sub Slots Evolved . | . . . . Power . | . . . . Propulsion . | . . . . Utility . | . . . . Weapon . | . . . . Parts Attached 32 | 7 8 14 3 Power 6 | 1 1 4 . Engine 4 | 1 . 3 . Core 2 | . 1 1 . Reactor . | . . . . Propulsion 5 | 2 2 1 . Treads . | . . . . Leg . | . . . . Wheel 4 | 2 2 . . Hover 1 | . . 1 . Flight . | . . . . Utility 6 | 1 4 1 . Device 2 | . 2 . . Storage 3 | 1 2 . . Processor . | . . . . Hackware . | . . . . Protection 1 | . . 1 . Artifact . | . . . . Weapon 15 | 3 1 8 3 Energy Gun 4 | 2 . 1 1 Energy Cannon 2 | . 1 1 . Ballistic Gun 6 | 1 . 4 1 Ballistic Cannon . | . . . . Launcher 1 | . . 1 . Special Weapon 2 | . . 1 1 Impact Weapon . | . . . . Slashing Weapon . | . . . . Piercing Weapon . | . . . . Special Melee Weapon . | . . . . Unidentified Prototypes . | . . . . Parts Lost 13 | . 4 8 1 Power 4 | . 1 3 . Propulsion 3 | . 2 1 . Utility 1 | . . 1 . Weapon 5 | . 1 3 1 Highest Loss Streak 4 | . 4 3 1 To Critical Strikes . | . . . . Average Slot Usage (%) 97 | . 95 95 100 Engine 10 | . 4 10 14 Core 2 | . 8 . . Wheel 17 | . 25 15 14 Hover 10 | . . 11 14 Device 3 | . 12 1 . Storage 14 | . 14 14 14 Protection 10 | . . 11 14 Energy Gun 1 | . 4 . . Energy Cannon 1 | . 9 . . Ballistic Gun 14 | . 14 15 14 Launcher 7 | . . 11 6 Special Weapon 2 | . . . 7 Naked Turns . | . . . . Heaviest Build 31 | 10 30 30 31 Greatest Support 32 | 20 32 32 12 Greatest Overweight (x) 4 | 1 4 2 2 Average Overweight (x) 1 | . . 1 2 Largest Inventory Capacity 15 | 8 15 15 15 Average Capacity 13 | 7 9 15 15 Most Carried 15 | 4 12 15 15 Average Carried 13 | 2 6 14 14 Final Capacity 15 | 8 15 15 15 Final Carried 15 | 4 12 15 14 Class Distribution -------------------- 76% | Scavenger-Mutant 23% | Mutant Dominant Class ---------------- Mutant | -10/Materials Scavenger-Mutant | -10/Mines Scavenger-Mutant | -10/Subcaves Resources | -11 -10 -10 -10 ----------- Run | Yrd Mat Min Sub Matter Collected 534 | 230 139 155 10 Remotely . | . . . . Salvage Created 668 | . 540 128 . Parts 35 | . 21 14 . Haulers Intercepted 1 | . 1 . . Recyclers Shooed 2 | . 2 . . Parts Field Recycled . | . . . . Retrieved Matter . | . . . . Parts Self-Destructed 6 | . . . 6 Prevented . | . . . . Kills | -11 -10 -10 -10 ------- Run | Yrd Mat Min Sub Combat Hostiles Destroyed 12 | . 6 6 . Guns 10 | . 5 5 . Cannons 2 | . 1 1 . Classes Destroyed 5 | . 4 1 . Hauler 1 | . 1 . . Recycler 2 | . 2 . . Operator 1 | . 1 . . Swarmer 4 | . . 4 . Grunt 8 | . 6 2 . Best Kill Streak 7 | . 7 3 . Combat Bots Only 4 | . 4 3 . Max Kills in Single Turn 1 | . 1 1 . Gunslinging . | . . . . Exploded . | . . . . Melee . | . . . . Uniques/NPCs Destroyed . | . . . . Combat | -11 -10 -10 -10 -------- Run | Yrd Mat Min Sub Hostile Shots Fired 100 | . 41 51 8 Missed 18 | . 5 11 2 Damage Taken 1221 | . 480 582 159 Core 256 | . 137 91 28 Absorbed by Shields . | . . . . Regen/Repaired (Parts) 18 | . 18 . . Core Remaining (%) 100 | 100 . . . Volleys Fired 102 | . 60 17 25 Largest 2 | . 2 2 2 Hottest 130 | . 80 120 130 Shots Fired 182 | . 120 33 29 Gun 131 | . 97 27 7 Cannon 26 | . 23 3 . Launcher . | . . . . Special 25 | . . 3 22 Kinetic 86 | . 60 22 4 Thermal 96 | . 60 11 25 Explosive . | . . . . Electromagnetic . | . . . . Robot Hit Streak 8 | . 8 5 3 Robot Miss Streak 5 | . 5 4 1 Penetration Max . | . . . . Secondary Targets 2 | . 1 1 . Max Gunslinging Chain 1 | . 1 1 . Shots Hit Robots 89 | . 66 18 5 Core Hits 36 | . 26 8 2 Critical Kills . | . . . . Critical Parts Destroyed 1 | . 1 . . Critical Strikes 1 | . 1 . . Destroy 1 | . 1 . . Melee Attacks . | . . . . Impact . | . . . . Slashing . | . . . . Piercing . | . . . . Sneak Attacks . | . . . . Combat Hostiles . | . . . . Follow-up Attacks . | . . . . Damage Inflicted 1079 | . 746 209 124 Guns 745 | . 499 146 100 Cannons 283 | . 247 36 . Explosions . | . . . . Melee . | . . . . Ramming . | . . . . Kinetic 426 | . 260 102 64 Thermal 653 | . 486 107 60 Explosive . | . . . . Electromagnetic . | . . . . Impact . | . . . . Slashing . | . . . . Piercing . | . . . . Highest Corruption . | . . . . Average Corruption . | . . . . Corruption Purged . | . . . . Corruption Blocked . | . . . . Overload Shots . | . . . . Overflow Damage 8 | . 8 . . Projectiles 8 | . 8 . . Explosions . | . . . . Melee . | . . . . Knockbacks . | . . . . Impact . | . . . . Kinetic . | . . . . Secondary . | . . . . Self-Inflicted Damage . | . . . . Shots . | . . . . Rammed . | . . . . Targets Rammed . | . . . . Kicked . | . . . . Crushed . | . . . . Highest Temperature 108 | . 32 108 . Average Temperature 21 | . 12 44 . Received Heat Transfer 452 | . 270 131 51 Siege Activations . | . . . . Robots Corrupted . | . . . . Combat Hostiles . | . . . . Parts Fried . | . . . . Impact Corruptions . | . . . . Robots Melted . | . . . . Combat Hostiles . | . . . . Parts Melted 2 | . 2 . . Heat Transferred 1538 | . 1068 345 125 Parts Sabotaged . | . . . . Parts Stolen . | . . . . Parts Stripped . | . . . . Power Chain Reactions . | . . . . Alert | -11 -10 -10 -10 ------- Run | Yrd Mat Min Sub Peak Influence 238 | . 238 189 . Initial 20 | . . 20 . Average 44 | . 94 28 . Maximum Alert Level 1 | . 1 . . Low Security (%) 93 | 100 73 100 . Level 1 6 | . 26 . . Level 2 . | . . . . Level 3 . | . . . . Level 4 . | . . . . Level 5 . | . . . . High Security . | . . . . Max Security . | . . . . Squads Dispatched 1 | . 1 . . Investigation . | . . . . Extermination . | . . . . Reinforcement 1 | . 1 . . Assault . | . . . . Garrison . | . . . . Intercept . | . . . . Searches Triggered . | . . . . Construction Impeded . | . . . . Haulers Reinforced . | . . . . Active Scanning Responses . | . . . . Cargo Convoy Interrupts . | . . . . Stealth | -11 -10 -10 -10 --------- Run | Yrd Mat Min Sub Distress Signals 1 | . 1 . . Communications Jammed . | . . . . Distress Signals . | . . . . Times Spotted 54 | . 25 27 2 Peak Tracking Total 20 | . 7 20 2 Tactical Retreats 3 | . 1 2 . Traps | -11 -10 -10 -10 ------- Run | Yrd Mat Min Sub Traps Triggered . | . . . . Indirectly . | . . . . Trap Hack Attempts . | . . . . Triggered . | . . . . Disarmed . | . . . . Reprogrammed . | . . . . Reused . | . . . . Traps Extracted . | . . . . Installed . | . . . . Triggered . | . . . . Machines | -11 -10 -10 -10 ---------- Run | Yrd Mat Min Sub Machines Disabled . | . . . . Max in Single Turn . | . . . . Machines Repaired . | . . . . Machines Dismantled . | . . . . Machines Sabotaged . | . . . . Overloaded Fab Kills . | . . . . Hacking | -11 -10 -10 -10 --------- Run | Yrd Mat Min Sub Machines Accessed 4 | . 4 . . Terminals 3 | . 3 . . Fabricators . | . . . . Repair Stations 1 | . 1 . . Recycling Units . | . . . . Scanalyzers . | . . . . Garrison Access . | . . . . Total Hacks 11 | . 11 . . Successful 2 | . 2 . . Failed 9 | . 9 . . Catastrophic 2 | . 2 . . Database Lockouts . | . . . . Manual 5 | . 5 . . Terminals 9 | . 9 . . Fabricators . | . . . . Repair Stations 2 | . 2 . . Recycling Units . | . . . . Scanalyzers . | . . . . Garrison Access . | . . . . Terminal Hacks . | . . . . Fabricator Hacks . | . . . . Repair Station Hacks 2 | . 2 . . Scan Component 1 | . 1 . . Repair 1 | . 1 . . Recycling Unit Hacks . | . . . . Scanalyzer . | . . . . Garrison Access Hacks . | . . . . Unauthorized Hacks . | . . . . Terminals . | . . . . Fabricators . | . . . . Repair Stations . | . . . . Recycling Units . | . . . . Scanalyzers . | . . . . Garrison Access . | . . . . Data Cores Recovered . | . . . . Used . | . . . . Hacking Detections 3 | . 3 . . Full Trace Events . | . . . . Feedback Events . | . . . . Feedback Blocked . | . . . . Robot Schematics Acquired . | . . . . Robots Built . | . . . . Authchips . | . . . . Time . | . . . . Total Robot Build Rating . | . . . . Part Schematics Acquired . | . . . . Parts Built . | . . . . Authchips . | . . . . Time . | . . . . Total Part Build Rating . | . . . . Parts Repaired 1 | . 1 . . Time 26 | . 26 . . Parts Recycled . | . . . . Recycled Matter . | . . . . Retrieved Matter . | . . . . Retrieved Components . | . . . . Parts Scanalyzed . | . . . . Part Schematics Acquired . | . . . . Parts Damaged . | . . . . Bothacking | -11 -10 -10 -10 ------------ Run | Yrd Mat Min Sub Used RIF Installer . | . . . . Robots Hacked . | . . . . Non-combat . | . . . . Combat . | . . . . Robot Hacks Applied . | . . . . Relay Couplers Released . | . . . . Fabnet Peak Effective % . | . . . . Robots Rewired . | . . . . Allies Hacked . | . . . . Hacks Repelled . | . . . . Allies | -11 -10 -10 -10 -------- Run | Yrd Mat Min Sub Total Allies 3 | . . 3 . Largest Group 3 | . . 3 2 Highest-Rated Group 73 | . . 73 42 Highest-Rated Ally 31 | . . 31 31 Total Orders . | . . . . Ally Attacks 12 | . . 12 . Total Damage 186 | . . 186 . Kills 3 | . . 3 . Allies Corrupted . | . . . . Allies Melted . | . . . . Intel | -11 -10 -10 -10 ------- Run | Yrd Mat Min Sub Robot Analysis Total . | . . . . Derelict Logs Recovered 1 | . . 1 . Drone Launches . | . . . . Drone Recoveries . | . . . . Exploration | -11 -10 -10 -10 ------------- Run | Yrd Mat Min Sub Turns Passed 3492 | 71 622 1718 1081 Spaces Moved 1728 | 71 401 821 435 Core 14 | 10 4 . . Treads . | . . . . Legs . | . . . . Wheels 652 | 61 397 194 . Hover 1062 | . . 627 435 Flight . | . . . . Fastest Speed 50 | 50 80 100 225 Average Speed 175 | 79 95 195 225 Slowest Speed 250 | 100 250 225 225 Overloaded Moves . | . . . . Propulsion Burnouts . | . . . . Robots Hopped . | . . . . Cave-ins Triggered . | . . . . Exploration Rate (%) 46 | 3 69 97 15 Regions Visited 3 Branch Regions 2 Pre-discovered Areas . | . . . . Known Exits Taken . | . . . . Unknown Exits Taken 3 | 1 1 1 . Scrap Searched 3 | . . 1 2 Spaces Dug . | . . . . Terrain Destroyed . | . . . . Melee . | . . . . Projectile . | . . . . AOE . | . . . . Terrain Rammed . | . . . . Walls Destroyed . | . . . . Machines Disabled . | . . . . Actions | -11 -10 -10 -10 --------- Run | Yrd Mat Min Sub Total 1980 | 81 530 899 470 Wait 92 | . 54 38 . Move 1725 | 70 400 820 435 Hop . | . . . . Pick Up 18 | 4 8 3 3 Fast Attach 18 | 6 3 9 . Attach 5 | . 2 2 1 Detach 3 | . . 3 . Swap 9 | 1 3 3 2 Drop 8 | . . 4 4 Fire 102 | . 60 17 25 Melee . | . . . . Ram . | . . . . Kick . | . . . . Crush . | . . . . Escape Stasis . | . . . . Rewire . | . . . . Trap . | . . . . Miscellaneous . | . . . . Route ------- -11/Scrapyard -10/Materials (discovered 3 exits: [*Mat x2] / [*Min]) -10/Mines (discovered 3 exits: [*Mat] / [*Exi] / [*Sub]) -10/Subcaves History --------- Turn | Location | Event 13 | -11/Scrapyard | Discovered new exit (range 15) 72 | -11/Scrapyard | Entered Materials 295 | -10/Materials | Core integrity fell below 50% 323 | -10/Materials | Lost 4 parts (1p2n1w) 346 | -10/Materials | Build established: Mutant 436 | -10/Materials | Discovered new exit (range 3) 524 | -10/Materials | Repaired Heat Sink 547 | -10/Materials | Discovered new exit (range 3) 655 | -10/Materials | Discovered new exit (range 7) 694 | -10/Materials | Entered Mines 708 | -10/Mines | A weapon hastily lodged in a ceiling crevice suddenly fell to the ground 927 | -10/Mines | Assembled infested the area 973 | -10/Mines | Received a Mining Laser from a helpful Derelict 975 | -10/Mines | Core integrity fell below 20% 1003 | -10/Mines | Lost 3 parts (1p2w) 1284 | -10/Mines | Build established: Scavenger-Mutant 1444 | -10/Mines | Discovered new exit (range 9) 1840 | -10/Mines | Received a Rocket Launcher from a helpful Derelict 2127 | -10/Mines | Discovered new exit (range 5) 2400 | -10/Mines | Discovered new exit (range 6) 2412 | -10/Mines | Entered Subcaves 2412 | -10/Subcaves | Accompanied by 2 allies 2417 | -10/Subcaves | Led the pair of lost Derelicts to an unsafe place 3493 | -10/Subcaves | Destroyed by FN-RPZ(R) with Subdweller Beam Cannon Last Messages --------------- Subatomizers dissect the Lgt. Assault Rifle. R9-MGH(u) builds Twisted Machinery. TZ-U2V(z) uncovers a bit of Twisted Machinery. R9-MGH(u) builds Twisted Machinery. V9-BH4(u) tweaks Twisted Machinery. R9-MGH(u) builds Twisted Machinery. R9-MGH(u) tweaks Twisted Machinery. R9-MGH(u) builds Twisted Machinery. Acquired 10 matter. R9-MGH(u) tweaks Twisted Machinery. R9-MGH(u) builds Twisted Machinery. R9-MGH(u) tweaks Twisted Machinery. V9-BH4(u) tweaks Twisted Machinery. R9-MGH(u) builds Twisted Machinery. V9-BH4(u) builds Twisted Machinery. R9-MGH(u) builds Twisted Machinery. Dropped Lgt. Assault Rifle. Subatomizers dissect the Lgt. Assault Rifle. Mining Laser destroyed. Map ----- +----------------------------------------------------+ | ?????????????????????????????????????????????????? | | ?????????????????????????????????????????????????? | | ?????????????????????????????????????????????????? | | ?????????????????????????????????????????????????? | | ?????????????????????????????????????????????????? | | ###??????????????????????????????????????????????? | | #??????????????????????????????????????????????? | | ##??????????????????????????????????????????????? | | #???????????????????????????????????????????????? | | #???????????????????????????????????????????????? | | ##???????????????????????????????????????????????? | | ##???????????????????????????????????????????????? | | #???????????????????????????????????????????????? | | #???????????????????????????????????????????????? | | #???????????????????????????###??? #????????????? | | ##??????????????????????????"" ? " #????????????? | | #??????????????????????????" """ ?????????????? | | ###?????????????????????????" "" ??????????????? | | #??????????????????????????? " "?#?????????????? | | ##?????????????????????????? ?|##????????????? | | "#?????????????????????????? ? ?????????????? | | ##?????????????????????????? # ???????????????? | | #???????????????????????####z #????????????????? | | #??????????????????????## # #" # #?????????? | | #####??????############# R"" #??????????? | | #??????# " # # @ R""" #???????????? | | "#??????#"" #""" #??????????? | | #??????#" " ###; ##### #??????????? | | #?????##" "#???# ##???# # ???????????? | | #######" """###### #????# #?????????????? | | """"" "" """ ## # ##?????# ##?????????????? | | """"" """ """"" #??????##??????????????? | | """"# "" """"" [## ####??????????????????????? | | ""######"" " " #####?????????????????????????? | | ""#????### ##?????????????????????????????? | | "" #??????## ##??????????????????????????????? | | ## #???????#### #???????????????????????????????? | | ??##??????????####???????????????????????????????? | | ?????????????????????????????????????????????????? | | ?????????????????????????????????????????????????? | | ?????????????????????????????????????????????????? | | ?????????????????????????????????????????????????? | | ?????????????????????????????????????????????????? | | ?????????????????????????????????????????????????? | | ?????????????????????????????????????????????????? | | ?????????????????????????????????????????????????? | | ?????????????????????????????????????????????????? | | ?????????????????????????????????????????????????? | | ?????????????????????????????????????????????????? | | ?????????????????????????????????????????????????? | +----------------------------------------------------+ Best States ------------- Heat Dissipation 39 Energy Generation 14 Energy Capacity 160 Matter Stores 300 Matter Capacity 300 Sight Range 16 Terrain Scan Density 10 Armor Coverage 150 Evasion (%) 44 Item Schematics ----------------- None Robot Schematics ------------------ None Fabricated ------------ Nothing Alien Tech Used ----------------- None Achievements -------------- Slippery One Challenges ------------ None Game ------ Seed ReactionWaveHumpback Manual? 0 Play Time 00:23:21 Cumulative 13.2 hours Start 2024.04.07 @ 22:49:41 End 2024.04.07 @ 23:12:59 Sessions 1 Manual Loads 0 Difficulty Rogue Special Mode None Game No. 28 Rogue 28 Adventurer 0 Explorer 0 Win Type - Total 0 Types 0/0/0/0/0/0/0/0/0 Lore% 17 Gallery% 23 Achievement% 19 Wizard Run 0 Options --------- Layout 1 ASCII 0 Keyboard 1 Movement Arrows Keybinds 0 Fullscreen 1 Font 24/Smallcaps Map View 50x35 Zoom Use 0% Tactical HUD 0 Map Filters NONE Filters NONE Steam 1 RUN: ba56f409-8a97-43f7-82f8-0dd79bc71ead